Department family,Entity,Date,Expense Type,Expense area,Supplier,Transaction number,AP Amount (�)
Department of Health,NHS Barnsley CCG,31/07/2017,Clinical&Medical-Commercial Sector,LEARNING DIFFICULTIES,ASC HEALTHCARE LTD,18106729,"56,511.30 "
Department of Health,NHS Barnsley CCG,31/07/2017,Miscellaneous Expenditure (L9),PCTF Revenue,BARNSLEY HEALTHCARE FEDERATION,17876165,"127,632.91 "
Department of Health,NHS Barnsley CCG,31/07/2017,C&M-APMS Contract Value,PRC DELEGATED CO-COMMISSIONING,BARNSLEY HEALTHCARE FEDERATION,17962624,"25,167.82 "
Department of Health,NHS Barnsley CCG,31/07/2017,C&M-APMS OOH Opt Outs,PRC DELEGATED CO-COMMISSIONING,BARNSLEY HEALTHCARE FEDERATION,17962624,713.75 
Department of Health,NHS Barnsley CCG,31/07/2017,C&M-APMS Prem Actual Rent,PRC DELEGATED CO-COMMISSIONING,BARNSLEY HEALTHCARE FEDERATION,17962624,"1,310.42 "
Department of Health,NHS Barnsley CCG,31/07/2017,C&M-PMS Prem Actual Rent,PRC DELEGATED CO-COMMISSIONING,BARNSLEY HEALTHCARE FEDERATION,17962624,"1,310.42 "
Department of Health,NHS Barnsley CCG,31/07/2017,C&M-PMS QOF Aspiration,PRC DELEGATED CO-COMMISSIONING,BARNSLEY HEALTHCARE FEDERATION,17962624,"2,442.47 "
Department of Health,NHS Barnsley CCG,31/07/2017,C&M-APMS Contract Value,PRC DELEGATED CO-COMMISSIONING,BARNSLEY HEALTHCARE FEDERATION,17962625,"(17,006.70)"
Department of Health,NHS Barnsley CCG,31/07/2017,C&M-APMS OOH Opt Outs,PRC DELEGATED CO-COMMISSIONING,BARNSLEY HEALTHCARE FEDERATION,17962625,"(1,437.29)"
Department of Health,NHS Barnsley CCG,31/07/2017,C&M-PMS Prem Actual Rent,PRC DELEGATED CO-COMMISSIONING,BARNSLEY HEALTHCARE FEDERATION,17962625,"(2,150.00)"
Department of Health,NHS Barnsley CCG,31/07/2017,C&M-PMS Prem Healthcentre Rent,PRC DELEGATED CO-COMMISSIONING,BARNSLEY HEALTHCARE FEDERATION,17962625,"(6,795.48)"
Department of Health,NHS Barnsley CCG,31/07/2017,C&M-APMS Contract Value,PRC DELEGATED CO-COMMISSIONING,BARNSLEY HEALTHCARE FEDERATION,17962626,"30,050.14 "
Department of Health,NHS Barnsley CCG,31/07/2017,C&M-APMS OOH Opt Outs,PRC DELEGATED CO-COMMISSIONING,BARNSLEY HEALTHCARE FEDERATION,17962626,841.80 
Department of Health,NHS Barnsley CCG,31/07/2017,C&M-APMS Prem Actual Rent,PRC DELEGATED CO-COMMISSIONING,BARNSLEY HEALTHCARE FEDERATION,17962626,"2,150.00 "
Department of Health,NHS Barnsley CCG,31/07/2017,C&M-APMS Prem Healthcentre Rent,PRC DELEGATED CO-COMMISSIONING,BARNSLEY HEALTHCARE FEDERATION,17962626,"6,795.48 "
Department of Health,NHS Barnsley CCG,31/07/2017,C&M-APMS Prem Rates,PRC DELEGATED CO-COMMISSIONING,BARNSLEY HEALTHCARE FEDERATION,17962626,478.00 
Department of Health,NHS Barnsley CCG,31/07/2017,C&M-PMS Prem Actual Rent,PRC DELEGATED CO-COMMISSIONING,BARNSLEY HEALTHCARE FEDERATION,17962626,"2,150.00 "
Department of Health,NHS Barnsley CCG,31/07/2017,C&M-PMS Prem Healthcentre Rent,PRC DELEGATED CO-COMMISSIONING,BARNSLEY HEALTHCARE FEDERATION,17962626,"6,795.48 "
Department of Health,NHS Barnsley CCG,31/07/2017,C&M-PMS QOF Aspiration,PRC DELEGATED CO-COMMISSIONING,BARNSLEY HEALTHCARE FEDERATION,17962626,"2,184.66 "
Department of Health,NHS Barnsley CCG,31/07/2017,C&M-PMS Contract Value,PRC DELEGATED CO-COMMISSIONING,BARNSLEY HEALTHCARE FEDERATION,17974085,"39,692.51 "
Department of Health,NHS Barnsley CCG,31/07/2017,C&M-PMS Out of Hours Opt Outs,PRC DELEGATED CO-COMMISSIONING,BARNSLEY HEALTHCARE FEDERATION,17974085,"1,107.70 "
Department of Health,NHS Barnsley CCG,31/07/2017,C&M-PMS Prem Healthcentre Rent,PRC DELEGATED CO-COMMISSIONING,BARNSLEY HEALTHCARE FEDERATION,17974085,"10,835.69 "
Department of Health,NHS Barnsley CCG,31/07/2017,C&M-PMS QOF Aspiration,PRC DELEGATED CO-COMMISSIONING,BARNSLEY HEALTHCARE FEDERATION,17974085,"4,628.16 "
Department of Health,NHS Barnsley CCG,31/07/2017,C&M-APMS Contract Value,PRC DELEGATED CO-COMMISSIONING,BARNSLEY HEALTHCARE FEDERATION,17989078,"27,629.46 "
Department of Health,NHS Barnsley CCG,31/07/2017,C&M-APMS OOH Opt Outs,PRC DELEGATED CO-COMMISSIONING,BARNSLEY HEALTHCARE FEDERATION,17989078,769.50 
Department of Health,NHS Barnsley CCG,31/07/2017,C&M-APMS Prem Actual Rent,PRC DELEGATED CO-COMMISSIONING,BARNSLEY HEALTHCARE FEDERATION,17989078,"6,200.00 "
Department of Health,NHS Barnsley CCG,31/07/2017,C&M-APMS Prem Rates,PRC DELEGATED CO-COMMISSIONING,BARNSLEY HEALTHCARE FEDERATION,17989078,"1,444.00 "
Department of Health,NHS Barnsley CCG,31/07/2017,C&M-PMS DES Learn Dsblty Hlth Chk,PRC DELEGATED CO-COMMISSIONING,BARNSLEY HEALTHCARE FEDERATION,17989078,"2,436.00 "
Department of Health,NHS Barnsley CCG,31/07/2017,C&M-PMS Prem Actual Rent,PRC DELEGATED CO-COMMISSIONING,BARNSLEY HEALTHCARE FEDERATION,17989078,"6,200.00 "
Department of Health,NHS Barnsley CCG,31/07/2017,C&M-PMS QOF Aspiration,PRC DELEGATED CO-COMMISSIONING,BARNSLEY HEALTHCARE FEDERATION,17989078,"2,549.33 "
Department of Health,NHS Barnsley CCG,31/07/2017,Clinical&Medical-Commercial Sector,OUT OF HOURS,BARNSLEY HEALTHCARE FEDERATION,18152935,"217,000.00 "
Department of Health,NHS Barnsley CCG,31/07/2017,Hcare Srv Rec Fdtn Trust-CQUIN,ACUTE COMMISSIONING,BARNSLEY HOSPITAL NHS FOUNDATION TRUST,17903025,"14,993.90 "
Department of Health,NHS Barnsley CCG,31/07/2017,Hcare Srv Rec Fdtn Trust-Contract Baseline,ACUTE COMMISSIONING,BARNSLEY HOSPITAL NHS FOUNDATION TRUST,17903025,"616,828.87 "
Department of Health,NHS Barnsley CCG,31/07/2017,Hcare Srv Rec Fdtn Trust-Non Contract,COMMISSIONING - NON ACUTE,BARNSLEY HOSPITAL NHS FOUNDATION TRUST,18107200,"27,183.00 "
Department of Health,NHS Barnsley CCG,30/06/2017,Hcare Srv Rec Fdtn Trust-CQUIN,ACUTE COMMISSIONING,BARNSLEY HOSPITAL NHS FOUNDATION TRUST,17870505,"260,797.00 "
Department of Health,NHS Barnsley CCG,30/06/2017,Hcare Srv Rec Fdtn Trust-Contract Baseline,ACUTE COMMISSIONING,BARNSLEY HOSPITAL NHS FOUNDATION TRUST,17870505,"11,025,785.00 "
Department of Health,NHS Barnsley CCG,30/06/2017,Hcare Srv Rec Fdtn Trust-CQUIN,ACUTE COMMISSIONING,BARNSLEY HOSPITAL NHS FOUNDATION TRUST,17870506,"10,847.00 "
Department of Health,NHS Barnsley CCG,30/06/2017,Hcare Srv Rec Fdtn Trust-Contract Baseline,ACUTE COMMISSIONING,BARNSLEY HOSPITAL NHS FOUNDATION TRUST,17870506,"562,297.00 "
Department of Health,NHS Barnsley CCG,30/06/2017,Chrgs from SLA,COMMISSIONING,BARNSLEY METROPOLITAN BOROUGH COUNCIL,17829936,"50,000.00 "
Department of Health,NHS Barnsley CCG,30/06/2017,Clinical&Medical-Othe Public Sector,COMMISSIONING - NON ACUTE,BARNSLEY METROPOLITAN BOROUGH COUNCIL,17829936,"1,076,300.75 "
Department of Health,NHS Barnsley CCG,30/06/2017,Clinical&Medical-Othe Public Sector,MENTAL HEALTH SERVICES - OTHER,BARNSLEY METROPOLITAN BOROUGH COUNCIL,17829936,"29,650.00 "
Department of Health,NHS Barnsley CCG,30/06/2017,Contr Other External,PROGRAMME PROJECTS,BARNSLEY METROPOLITAN BOROUGH COUNCIL,17829936,"(850,000.00)"
Department of Health,NHS Barnsley CCG,30/06/2017,Expenditure on Drugs Action Team,MENTAL HEALTH SERVICES - SPECIALIST SERVICES,BARNSLEY METROPOLITAN BOROUGH COUNCIL,17829936,"125,000.00 "
Department of Health,NHS Barnsley CCG,30/06/2017,GROSSRECOVEMPBEN - SALARIES & WAGES,COLLABORATIVE COMMISSIONING,BARNSLEY METROPOLITAN BOROUGH COUNCIL,17829936,"(15,656.50)"
Department of Health,NHS Barnsley CCG,30/06/2017,Local AuthorityRevenue-Non-Contract,COMMUNITY SERVICES,BARNSLEY METROPOLITAN BOROUGH COUNCIL,17829936,"(7,989.25)"
Department of Health,NHS Barnsley CCG,30/06/2017,Participation Fees,COMMUNITY SERVICES,BARNSLEY METROPOLITAN BOROUGH COUNCIL,17829936,"35,250.00 "
Department of Health,NHS Barnsley CCG,30/06/2017,Services From Local Authorities,COMMISSIONING - NON ACUTE,BARNSLEY METROPOLITAN BOROUGH COUNCIL,17829936,"18,912.00 "
Department of Health,NHS Barnsley CCG,30/06/2017,Soc Care-Bed-Based Int Care Servs,COMMUNITY SERVICES,BARNSLEY METROPOLITAN BOROUGH COUNCIL,17829936,"972,650.00 "
Department of Health,NHS Barnsley CCG,30/06/2017,Soc Care-Maintaining Eligib Crit,COMMUNITY SERVICES,BARNSLEY METROPOLITAN BOROUGH COUNCIL,17829936,"1,186,250.00 "
Department of Health,NHS Barnsley CCG,30/06/2017,Soc Care-Other Soc Care,COMMUNITY SERVICES,BARNSLEY METROPOLITAN BOROUGH COUNCIL,17829936,"175,000.00 "
Department of Health,NHS Barnsley CCG,30/06/2017,Soc Care-Re-ablement services,COMMUNITY SERVICES,BARNSLEY METROPOLITAN BOROUGH COUNCIL,17829936,"12,250.00 "
Department of Health,NHS Barnsley CCG,30/06/2017,Social Care-Res Short Stay Exp,COMMUNITY SERVICES,BARNSLEY METROPOLITAN BOROUGH COUNCIL,17829936,"190,250.00 "
Department of Health,NHS Barnsley CCG,31/07/2017,Clinical&Medical-Commercial Sector,ACUTE COMMISSIONING,BMI HEALTHCARE COLLECTIONS,17876191,"46,550.44 "
Department of Health,NHS Barnsley CCG,31/07/2017,Clinical&Medical-Commercial Sector,ACUTE COMMISSIONING,BMI HEALTHCARE COLLECTIONS,18210462,"46,550.44 "
Department of Health,NHS Barnsley CCG,30/06/2017,Hcare Srv Rec Fdtn Trust-Contract Cost per Case,NCAS/OATS,BRADFORD TEACHING HOSPITALS NHS FOUNDATION TRUST,17829906,"25,190.83 "
Department of Health,NHS Barnsley CCG,31/07/2017,Clinical&Medical-Commercial Sector,ACUTE COMMISSIONING,CLAREMONT HOSPITAL,17925585,"54,938.00 "
Department of Health,NHS Barnsley CCG,31/07/2017,Clinical&Medical-Commercial Sector,MENTAL CAPACITY ACT,DANSHELL HEALTHCARE LTD,17923304,"33,450.00 "
Department of Health,NHS Barnsley CCG,31/07/2017,Clinical&Medical-Commercial Sector,LEARNING DIFFICULTIES,DANSHELL HEALTHCARE LTD,18229194,"34,565.00 "
Department of Health,NHS Barnsley CCG,31/07/2017,C&M-GMS DES Minor Surgery,PRC DELEGATED CO-COMMISSIONING,NHS BARNSLEY CCG GP PRACTICEE,18167890,"4,475.10 "
Department of Health,NHS Barnsley CCG,31/07/2017,C&M-GMS DES UNPLANNED ADMISSIONS,PRC DELEGATED CO-COMMISSIONING,NHS BARNSLEY CCG GP PRACTICEE,18167890,"10,382.68 "
Department of Health,NHS Barnsley CCG,31/07/2017,C&M-GMS Global Sum,PRC DELEGATED CO-COMMISSIONING,NHS BARNSLEY CCG GP PRACTICEE,18167890,"78,314.76 "
Department of Health,NHS Barnsley CCG,31/07/2017,C&M-GMS PCO Other,PRC DELEGATED CO-COMMISSIONING,NHS BARNSLEY CCG GP PRACTICEE,18167890,"4,526.00 "
Department of Health,NHS Barnsley CCG,31/07/2017,C&M-GMS Prem Healthcentre Rent,PRC DELEGATED CO-COMMISSIONING,NHS BARNSLEY CCG GP PRACTICEE,18167890,"24,168.48 "
Department of Health,NHS Barnsley CCG,31/07/2017,C&M-GMS QOF Aspiration,PRC DELEGATED CO-COMMISSIONING,NHS BARNSLEY CCG GP PRACTICEE,18167890,"7,839.58 "
Department of Health,NHS Barnsley CCG,31/07/2017,ME - GMS GP Prior Year ERs,PRC DELEGATED CO-COMMISSIONING,NHS BARNSLEY CCG GP PRACTICEE,18167890,445.40 
Department of Health,NHS Barnsley CCG,31/07/2017,ME-GMS GP Prior Year EEs,PRC DELEGATED CO-COMMISSIONING,NHS BARNSLEY CCG GP PRACTICEE,18167890,387.26 
Department of Health,NHS Barnsley CCG,31/07/2017,C&M-PMS Contract Value,PRC DELEGATED CO-COMMISSIONING,NHS BARNSLEY CCG GP PRACTICEE,17974082,"(29,882.80)"
Department of Health,NHS Barnsley CCG,31/07/2017,C&M-PMS GP Statutory Levy,PRC DELEGATED CO-COMMISSIONING,NHS BARNSLEY CCG GP PRACTICEE,17974082,(190.45)
Department of Health,NHS Barnsley CCG,31/07/2017,C&M-PMS Out of Hours Opt Outs,PRC DELEGATED CO-COMMISSIONING,NHS BARNSLEY CCG GP PRACTICEE,17974082,"(2,301.69)"
Department of Health,NHS Barnsley CCG,31/07/2017,C&M-PMS Voluntary Levy,PRC DELEGATED CO-COMMISSIONING,NHS BARNSLEY CCG GP PRACTICEE,17974082,(33.31)
Department of Health,NHS Barnsley CCG,31/07/2017,C&M-PMS Contract Value,PRC DELEGATED CO-COMMISSIONING,NHS BARNSLEY CCG GP PRACTICEE,17974083,"48,259.80 "
Department of Health,NHS Barnsley CCG,31/07/2017,C&M-PMS Out of Hours Opt Outs,PRC DELEGATED CO-COMMISSIONING,NHS BARNSLEY CCG GP PRACTICEE,17974083,"1,481.78 "
Department of Health,NHS Barnsley CCG,31/07/2017,C&M-PMS Prem Notional Rent,PRC DELEGATED CO-COMMISSIONING,NHS BARNSLEY CCG GP PRACTICEE,17974083,"28,675.00 "
Department of Health,NHS Barnsley CCG,31/07/2017,C&M-PMS QOF Aspiration,PRC DELEGATED CO-COMMISSIONING,NHS BARNSLEY CCG GP PRACTICEE,17974083,"5,260.11 "
Department of Health,NHS Barnsley CCG,31/07/2017,Hcare Srv Rec Fdtn Trust-CQUIN,ACUTE COMMISSIONING,DONCASTER AND BASSETLAW HOSPITALS NHS FOUNDATION TRUST,17876048,"6,597.00 "
Department of Health,NHS Barnsley CCG,31/07/2017,Hcare Srv Rec Fdtn Trust-Contract Baseline,ACUTE COMMISSIONING,DONCASTER AND BASSETLAW HOSPITALS NHS FOUNDATION TRUST,17876048,"518,453.00 "
Department of Health,NHS Barnsley CCG,31/07/2017,C&M-PMS Contract Value,PRC DELEGATED CO-COMMISSIONING,NHS BARNSLEY CCG GP PRACTICEE,17962597,"(50,621.30)"
Department of Health,NHS Barnsley CCG,31/07/2017,C&M-PMS GP Statutory Levy,PRC DELEGATED CO-COMMISSIONING,NHS BARNSLEY CCG GP PRACTICEE,17962597,(355.86)
Department of Health,NHS Barnsley CCG,31/07/2017,C&M-PMS Out of Hours Opt Outs,PRC DELEGATED CO-COMMISSIONING,NHS BARNSLEY CCG GP PRACTICEE,17962597,"(4,399.00)"
Department of Health,NHS Barnsley CCG,31/07/2017,C&M-PMS Voluntary Levy,PRC DELEGATED CO-COMMISSIONING,NHS BARNSLEY CCG GP PRACTICEE,17962597,(62.25)
Department of Health,NHS Barnsley CCG,31/07/2017,ME-PMS GP Pension EEs-PMS,PRC DELEGATED CO-COMMISSIONING,NHS BARNSLEY CCG GP PRACTICEE,17962597,"(5,945.20)"
Department of Health,NHS Barnsley CCG,31/07/2017,ME-PMS GP Pension ERs Adjs - PMS,PRC DELEGATED CO-COMMISSIONING,NHS BARNSLEY CCG GP PRACTICEE,17962597,"(6,205.21)"
Department of Health,NHS Barnsley CCG,31/07/2017,C&M-PMS Contract Value,PRC DELEGATED CO-COMMISSIONING,NHS BARNSLEY CCG GP PRACTICEE,17962598,"88,976.24 "
Department of Health,NHS Barnsley CCG,31/07/2017,C&M-PMS Out of Hours Opt Outs,PRC DELEGATED CO-COMMISSIONING,NHS BARNSLEY CCG GP PRACTICEE,17962598,"2,603.80 "
Department of Health,NHS Barnsley CCG,31/07/2017,C&M-PMS Prem Healthcentre Rent,PRC DELEGATED CO-COMMISSIONING,NHS BARNSLEY CCG GP PRACTICEE,17962598,"19,781.47 "
Department of Health,NHS Barnsley CCG,31/07/2017,C&M-PMS Prem Notional Rent,PRC DELEGATED CO-COMMISSIONING,NHS BARNSLEY CCG GP PRACTICEE,17962598,"1,833.33 "
Department of Health,NHS Barnsley CCG,31/07/2017,C&M-PMS Prem Rates,PRC DELEGATED CO-COMMISSIONING,NHS BARNSLEY CCG GP PRACTICEE,17962598,289.00 
Department of Health,NHS Barnsley CCG,31/07/2017,C&M-PMS Prem Water Rates,PRC DELEGATED CO-COMMISSIONING,NHS BARNSLEY CCG GP PRACTICEE,17962598,306.79 
Department of Health,NHS Barnsley CCG,31/07/2017,C&M-PMS QOF Aspiration,PRC DELEGATED CO-COMMISSIONING,NHS BARNSLEY CCG GP PRACTICEE,17962598,"10,231.70 "
Department of Health,NHS Barnsley CCG,31/07/2017,C&M-GMS LES Demand Mgmt,COMMISSIONING SCHEMES,NHS BARNSLEY CCG GP PRACTICEE,18153057,"15,685.47 "
Department of Health,NHS Barnsley CCG,31/07/2017,Clinical&Medical-Clinical Other,COMMISSIONING SCHEMES,NHS BARNSLEY CCG GP PRACTICEE,18153057,"10,670.22 "
Department of Health,NHS Barnsley CCG,31/07/2017,C&M-PMS Contract Value,PRC DELEGATED CO-COMMISSIONING,NHS BARNSLEY CCG GP PRACTICEE,17962601,"(28,737.30)"
Department of Health,NHS Barnsley CCG,31/07/2017,C&M-PMS GP Statutory Levy,PRC DELEGATED CO-COMMISSIONING,NHS BARNSLEY CCG GP PRACTICEE,17962601,(225.58)
Department of Health,NHS Barnsley CCG,31/07/2017,C&M-PMS Out of Hours Opt Outs,PRC DELEGATED CO-COMMISSIONING,NHS BARNSLEY CCG GP PRACTICEE,17962601,"(2,503.44)"
Department of Health,NHS Barnsley CCG,31/07/2017,C&M-PMS Voluntary Levy,PRC DELEGATED CO-COMMISSIONING,NHS BARNSLEY CCG GP PRACTICEE,17962601,(39.46)
Department of Health,NHS Barnsley CCG,31/07/2017,ME-PMS GP Pension EEs-PMS,PRC DELEGATED CO-COMMISSIONING,NHS BARNSLEY CCG GP PRACTICEE,17962601,"(3,156.99)"
Department of Health,NHS Barnsley CCG,31/07/2017,ME-PMS GP Pension ERs Adjs - PMS,PRC DELEGATED CO-COMMISSIONING,NHS BARNSLEY CCG GP PRACTICEE,17962601,"(3,244.72)"
Department of Health,NHS Barnsley CCG,31/07/2017,C&M-PMS Contract Value,PRC DELEGATED CO-COMMISSIONING,NHS BARNSLEY CCG GP PRACTICEE,17962602,"50,635.93 "
Department of Health,NHS Barnsley CCG,31/07/2017,C&M-PMS Out of Hours Opt Outs,PRC DELEGATED CO-COMMISSIONING,NHS BARNSLEY CCG GP PRACTICEE,17962602,"1,478.15 "
Department of Health,NHS Barnsley CCG,31/07/2017,C&M-PMS Prem Healthcentre Rent,PRC DELEGATED CO-COMMISSIONING,NHS BARNSLEY CCG GP PRACTICEE,17962602,"21,557.02 "
Department of Health,NHS Barnsley CCG,31/07/2017,C&M-PMS QOF Aspiration,PRC DELEGATED CO-COMMISSIONING,NHS BARNSLEY CCG GP PRACTICEE,17962602,"5,374.86 "
Department of Health,NHS Barnsley CCG,31/07/2017,C&M-GMS DES Minor Surgery,PRC DELEGATED CO-COMMISSIONING,NHS BARNSLEY CCG GP PRACTICEE,18167892,"4,176.76 "
Department of Health,NHS Barnsley CCG,31/07/2017,C&M-GMS Global Sum,PRC DELEGATED CO-COMMISSIONING,NHS BARNSLEY CCG GP PRACTICEE,18167892,"71,333.92 "
Department of Health,NHS Barnsley CCG,31/07/2017,C&M-GMS PCO Other,PRC DELEGATED CO-COMMISSIONING,NHS BARNSLEY CCG GP PRACTICEE,18167892,452.60 
Department of Health,NHS Barnsley CCG,31/07/2017,C&M-GMS Prem Notional Rent,PRC DELEGATED CO-COMMISSIONING,NHS BARNSLEY CCG GP PRACTICEE,18167892,"4,483.33 "
Department of Health,NHS Barnsley CCG,31/07/2017,C&M-GMS QOF Aspiration,PRC DELEGATED CO-COMMISSIONING,NHS BARNSLEY CCG GP PRACTICEE,18167892,"8,873.87 "
Department of Health,NHS Barnsley CCG,31/07/2017,C&M-GMS Global Sum,PRC DELEGATED CO-COMMISSIONING,NHS BARNSLEY CCG GP PRACTICEE,18167894,"88,444.59 "
Department of Health,NHS Barnsley CCG,31/07/2017,C&M-GMS Prem Actual Rent,PRC DELEGATED CO-COMMISSIONING,NHS BARNSLEY CCG GP PRACTICEE,18167894,"4,253.50 "
Department of Health,NHS Barnsley CCG,31/07/2017,C&M-GMS Prem Healthcentre Rent,PRC DELEGATED CO-COMMISSIONING,NHS BARNSLEY CCG GP PRACTICEE,18167894,"3,289.55 "
Department of Health,NHS Barnsley CCG,31/07/2017,C&M-GMS Prem Notional Rent,PRC DELEGATED CO-COMMISSIONING,NHS BARNSLEY CCG GP PRACTICEE,18167894,"1,572.92 "
Department of Health,NHS Barnsley CCG,31/07/2017,C&M-GMS Prem Rates,PRC DELEGATED CO-COMMISSIONING,NHS BARNSLEY CCG GP PRACTICEE,18167894,"1,209.00 "
Department of Health,NHS Barnsley CCG,31/07/2017,C&M-GMS QOF Aspiration,PRC DELEGATED CO-COMMISSIONING,NHS BARNSLEY CCG GP PRACTICEE,18167894,"8,682.82 "
Department of Health,NHS Barnsley CCG,31/07/2017,C&M-PMS Contract Value,PRC DELEGATED CO-COMMISSIONING,NHS BARNSLEY CCG GP PRACTICEE,17962605,"(72,442.00)"
Department of Health,NHS Barnsley CCG,31/07/2017,C&M-PMS Funding Differential Review,PRC DELEGATED CO-COMMISSIONING,NHS BARNSLEY CCG GP PRACTICEE,17962605,(56.40)
Department of Health,NHS Barnsley CCG,31/07/2017,C&M-PMS GP Statutory Levy,PRC DELEGATED CO-COMMISSIONING,NHS BARNSLEY CCG GP PRACTICEE,17962605,(563.28)
Department of Health,NHS Barnsley CCG,31/07/2017,C&M-PMS Out of Hours Opt Outs,PRC DELEGATED CO-COMMISSIONING,NHS BARNSLEY CCG GP PRACTICEE,17962605,"(6,010.67)"
Department of Health,NHS Barnsley CCG,31/07/2017,C&M-PMS Voluntary Levy,PRC DELEGATED CO-COMMISSIONING,NHS BARNSLEY CCG GP PRACTICEE,17962605,(98.53)
Department of Health,NHS Barnsley CCG,31/07/2017,ME - PMS TPS Added Years Adj EEs,PRC DELEGATED CO-COMMISSIONING,NHS BARNSLEY CCG GP PRACTICEE,17962605,(610.96)
Department of Health,NHS Barnsley CCG,31/07/2017,ME-PMS GP Pension EEs-PMS,PRC DELEGATED CO-COMMISSIONING,NHS BARNSLEY CCG GP PRACTICEE,17962605,"(13,675.09)"
Department of Health,NHS Barnsley CCG,31/07/2017,ME-PMS GP Pension ERs Adjs - PMS,PRC DELEGATED CO-COMMISSIONING,NHS BARNSLEY CCG GP PRACTICEE,17962605,"(14,281.29)"
Department of Health,NHS Barnsley CCG,31/07/2017,C&M-PMS Contract Value,PRC DELEGATED CO-COMMISSIONING,NHS BARNSLEY CCG GP PRACTICEE,17962606,"127,027.70 "
Department of Health,NHS Barnsley CCG,31/07/2017,C&M-PMS DES UNPLANNED ADMISSIONS,PRC DELEGATED CO-COMMISSIONING,NHS BARNSLEY CCG GP PRACTICEE,17962606,"12,832.05 "
Department of Health,NHS Barnsley CCG,31/07/2017,C&M-PMS Funding Differential Review,PRC DELEGATED CO-COMMISSIONING,NHS BARNSLEY CCG GP PRACTICEE,17962606,94.00 
Department of Health,NHS Barnsley CCG,31/07/2017,C&M-PMS Out of Hours Opt Outs,PRC DELEGATED CO-COMMISSIONING,NHS BARNSLEY CCG GP PRACTICEE,17962606,"3,557.90 "
Department of Health,NHS Barnsley CCG,31/07/2017,C&M-PMS Prem Actual Rent,PRC DELEGATED CO-COMMISSIONING,NHS BARNSLEY CCG GP PRACTICEE,17962606,"24,600.00 "
Department of Health,NHS Barnsley CCG,31/07/2017,C&M-PMS Prem Notional Rent,PRC DELEGATED CO-COMMISSIONING,NHS BARNSLEY CCG GP PRACTICEE,17962606,"6,333.33 "
Department of Health,NHS Barnsley CCG,31/07/2017,C&M-PMS Prem Rates,PRC DELEGATED CO-COMMISSIONING,NHS BARNSLEY CCG GP PRACTICEE,17962606,"1,851.00 "
Department of Health,NHS Barnsley CCG,31/07/2017,C&M-PMS QOF Aspiration,PRC DELEGATED CO-COMMISSIONING,NHS BARNSLEY CCG GP PRACTICEE,17962606,"14,324.80 "
Department of Health,NHS Barnsley CCG,31/07/2017,C&M-PMS Cost of Drugs -Dispensing,LOCAL ENHANCED SERVICES,NHS BARNSLEY CCG GP PRACTICEE,18194043,"(83,229.32)"
Department of Health,NHS Barnsley CCG,31/07/2017,C&M-PMS Prsc Chrgs Cll&Rmttd by GPs,PRC DELEGATED CO-COMMISSIONING,NHS BARNSLEY CCG GP PRACTICEE,18194043,"(4,721.20)"
Department of Health,NHS Barnsley CCG,31/07/2017,C&M-PMS Cost of Drugs -Dispensing,LOCAL ENHANCED SERVICES,NHS BARNSLEY CCG GP PRACTICEE,18194044,"155,750.58 "
Department of Health,NHS Barnsley CCG,31/07/2017,C&M-PMS Prof fees Dispensing,PRC DELEGATED CO-COMMISSIONING,NHS BARNSLEY CCG GP PRACTICEE,18194044,"27,010.47 "
Department of Health,NHS Barnsley CCG,31/07/2017,C&M-PMS Prsc Chrgs Cll&Rmttd by GPs,LOCAL ENHANCED SERVICES,NHS BARNSLEY CCG GP PRACTICEE,18194044,"4,721.20 "
Department of Health,NHS Barnsley CCG,31/07/2017,C&M-GMS DES UNPLANNED ADMISSIONS,PRC DELEGATED CO-COMMISSIONING,NHS BARNSLEY CCG GP PRACTICEE,18175039,"2,193.73 "
Department of Health,NHS Barnsley CCG,31/07/2017,C&M-GMS Global Sum,PRC DELEGATED CO-COMMISSIONING,NHS BARNSLEY CCG GP PRACTICEE,18175039,"20,614.79 "
Department of Health,NHS Barnsley CCG,31/07/2017,C&M-GMS MPIG Correction Factor,PRC DELEGATED CO-COMMISSIONING,NHS BARNSLEY CCG GP PRACTICEE,18175039,607.19 
Department of Health,NHS Barnsley CCG,31/07/2017,C&M-GMS Prem Healthcentre Rent,PRC DELEGATED CO-COMMISSIONING,NHS BARNSLEY CCG GP PRACTICEE,18175039,"2,198.57 "
Department of Health,NHS Barnsley CCG,31/07/2017,C&M-GMS QOF Aspiration,PRC DELEGATED CO-COMMISSIONING,NHS BARNSLEY CCG GP PRACTICEE,18175039,"2,409.31 "
Department of Health,NHS Barnsley CCG,31/07/2017,C&M-GMS DES Minor Surgery,PRC DELEGATED CO-COMMISSIONING,NHS BARNSLEY CCG GP PRACTICEE,18167896,85.24 
Department of Health,NHS Barnsley CCG,31/07/2017,C&M-GMS Global Sum,PRC DELEGATED CO-COMMISSIONING,NHS BARNSLEY CCG GP PRACTICEE,18167896,"38,875.41 "
Department of Health,NHS Barnsley CCG,31/07/2017,C&M-GMS Prem Actual Rent,PRC DELEGATED CO-COMMISSIONING,NHS BARNSLEY CCG GP PRACTICEE,18167896,"9,212.50 "
Department of Health,NHS Barnsley CCG,31/07/2017,C&M-GMS Prem Notional Rent,PRC DELEGATED CO-COMMISSIONING,NHS BARNSLEY CCG GP PRACTICEE,18167896,"1,416.67 "
Department of Health,NHS Barnsley CCG,31/07/2017,C&M-GMS Prem Rates,PRC DELEGATED CO-COMMISSIONING,NHS BARNSLEY CCG GP PRACTICEE,18167896,"1,072.00 "
Department of Health,NHS Barnsley CCG,31/07/2017,C&M-GMS QOF Aspiration,PRC DELEGATED CO-COMMISSIONING,NHS BARNSLEY CCG GP PRACTICEE,18167896,"4,292.81 "
Department of Health,NHS Barnsley CCG,31/07/2017,C&M-PMS Contract Value,PRC DELEGATED CO-COMMISSIONING,NHS BARNSLEY CCG GP PRACTICEE,17962603,"(22,815.66)"
Department of Health,NHS Barnsley CCG,31/07/2017,C&M-PMS Funding Differential Review,PRC DELEGATED CO-COMMISSIONING,NHS BARNSLEY CCG GP PRACTICEE,17962603,"(1,522.25)"
Department of Health,NHS Barnsley CCG,31/07/2017,C&M-PMS GP Statutory Levy,PRC DELEGATED CO-COMMISSIONING,NHS BARNSLEY CCG GP PRACTICEE,17962603,(155.38)
Department of Health,NHS Barnsley CCG,31/07/2017,C&M-PMS Out of Hours Opt Outs,PRC DELEGATED CO-COMMISSIONING,NHS BARNSLEY CCG GP PRACTICEE,17962603,"(1,851.74)"
Department of Health,NHS Barnsley CCG,31/07/2017,C&M-PMS Voluntary Levy,PRC DELEGATED CO-COMMISSIONING,NHS BARNSLEY CCG GP PRACTICEE,17962603,(27.18)
Department of Health,NHS Barnsley CCG,31/07/2017,ME-PMS GP Pension EEs-PMS,PRC DELEGATED CO-COMMISSIONING,NHS BARNSLEY CCG GP PRACTICEE,17962603,"(1,350.92)"
Department of Health,NHS Barnsley CCG,31/07/2017,ME-PMS GP Pension ERs Adjs - PMS,PRC DELEGATED CO-COMMISSIONING,NHS BARNSLEY CCG GP PRACTICEE,17962603,"(1,339.74)"
Department of Health,NHS Barnsley CCG,31/07/2017,C&M-PMS Contract Value,PRC DELEGATED CO-COMMISSIONING,NHS BARNSLEY CCG GP PRACTICEE,17962604,"39,273.48 "
Department of Health,NHS Barnsley CCG,31/07/2017,C&M-PMS Funding Differential Review,PRC DELEGATED CO-COMMISSIONING,NHS BARNSLEY CCG GP PRACTICEE,17962604,"2,537.08 "
Department of Health,NHS Barnsley CCG,31/07/2017,C&M-PMS Out of Hours Opt Outs,PRC DELEGATED CO-COMMISSIONING,NHS BARNSLEY CCG GP PRACTICEE,17962604,"1,116.98 "
Department of Health,NHS Barnsley CCG,31/07/2017,C&M-PMS Prem Healthcentre Rent,PRC DELEGATED CO-COMMISSIONING,NHS BARNSLEY CCG GP PRACTICEE,17962604,"2,989.52 "
Department of Health,NHS Barnsley CCG,31/07/2017,C&M-PMS Prem Notional Rent,PRC DELEGATED CO-COMMISSIONING,NHS BARNSLEY CCG GP PRACTICEE,17962604,"8,600.00 "
Department of Health,NHS Barnsley CCG,31/07/2017,C&M-PMS Prem Rates,PRC DELEGATED CO-COMMISSIONING,NHS BARNSLEY CCG GP PRACTICEE,17962604,"1,030.00 "
Department of Health,NHS Barnsley CCG,31/07/2017,C&M-PMS Prem Water Rates,PRC DELEGATED CO-COMMISSIONING,NHS BARNSLEY CCG GP PRACTICEE,17962604,197.42 
Department of Health,NHS Barnsley CCG,31/07/2017,C&M-PMS QOF Aspiration,PRC DELEGATED CO-COMMISSIONING,NHS BARNSLEY CCG GP PRACTICEE,17962604,"2,711.68 "
Department of Health,NHS Barnsley CCG,31/07/2017,C&M-GMS DES Minor Surgery,PRC DELEGATED CO-COMMISSIONING,NHS BARNSLEY CCG GP PRACTICEE,18167900,"5,966.80 "
Department of Health,NHS Barnsley CCG,31/07/2017,C&M-GMS Global Sum,PRC DELEGATED CO-COMMISSIONING,NHS BARNSLEY CCG GP PRACTICEE,18167900,"103,078.25 "
Department of Health,NHS Barnsley CCG,31/07/2017,C&M-GMS Prem Notional Rent,PRC DELEGATED CO-COMMISSIONING,NHS BARNSLEY CCG GP PRACTICEE,18167900,"8,208.33 "
Department of Health,NHS Barnsley CCG,31/07/2017,C&M-GMS QOF Aspiration,PRC DELEGATED CO-COMMISSIONING,NHS BARNSLEY CCG GP PRACTICEE,18167900,"11,180.37 "
Department of Health,NHS Barnsley CCG,31/07/2017,C&M-PMS Contract Value,PRC DELEGATED CO-COMMISSIONING,NHS BARNSLEY CCG GP PRACTICEE,17962607,"(54,422.80)"
Department of Health,NHS Barnsley CCG,31/07/2017,C&M-PMS GP Statutory Levy,PRC DELEGATED CO-COMMISSIONING,NHS BARNSLEY CCG GP PRACTICEE,17962607,(396.63)
Department of Health,NHS Barnsley CCG,31/07/2017,C&M-PMS Out of Hours Opt Outs,PRC DELEGATED CO-COMMISSIONING,NHS BARNSLEY CCG GP PRACTICEE,17962607,"(4,732.12)"
Department of Health,NHS Barnsley CCG,31/07/2017,C&M-PMS Voluntary Levy,PRC DELEGATED CO-COMMISSIONING,NHS BARNSLEY CCG GP PRACTICEE,17962607,(69.38)
Department of Health,NHS Barnsley CCG,31/07/2017,ME - PMS TPS Added Years Adj EEs,PRC DELEGATED CO-COMMISSIONING,NHS BARNSLEY CCG GP PRACTICEE,17962607,(585.27)
Department of Health,NHS Barnsley CCG,31/07/2017,ME-PMS GP Pension EEs-PMS,PRC DELEGATED CO-COMMISSIONING,NHS BARNSLEY CCG GP PRACTICEE,17962607,"(6,931.84)"
Department of Health,NHS Barnsley CCG,31/07/2017,ME-PMS GP Pension ERs Adjs - PMS,PRC DELEGATED CO-COMMISSIONING,NHS BARNSLEY CCG GP PRACTICEE,17962607,"(7,074.11)"
Department of Health,NHS Barnsley CCG,31/07/2017,C&M-PMS Contract Value,PRC DELEGATED CO-COMMISSIONING,NHS BARNSLEY CCG GP PRACTICEE,17962608,"95,716.95 "
Department of Health,NHS Barnsley CCG,31/07/2017,C&M-PMS DES UNPLANNED ADMISSIONS,PRC DELEGATED CO-COMMISSIONING,NHS BARNSLEY CCG GP PRACTICEE,17962608,"9,237.69 "
Department of Health,NHS Barnsley CCG,31/07/2017,C&M-PMS Out of Hours Opt Outs,PRC DELEGATED CO-COMMISSIONING,NHS BARNSLEY CCG GP PRACTICEE,17962608,"2,799.25 "
Department of Health,NHS Barnsley CCG,31/07/2017,C&M-PMS Prem Notional Rent,PRC DELEGATED CO-COMMISSIONING,NHS BARNSLEY CCG GP PRACTICEE,17962608,"13,500.00 "
Department of Health,NHS Barnsley CCG,31/07/2017,C&M-PMS Prem Rates,PRC DELEGATED CO-COMMISSIONING,NHS BARNSLEY CCG GP PRACTICEE,17962608,"2,353.07 "
Department of Health,NHS Barnsley CCG,31/07/2017,C&M-PMS QOF Aspiration,PRC DELEGATED CO-COMMISSIONING,NHS BARNSLEY CCG GP PRACTICEE,17962608,"9,956.81 "
Department of Health,NHS Barnsley CCG,31/07/2017,C&M-GMS LES Demand Mgmt,COMMISSIONING SCHEMES,NHS BARNSLEY CCG GP PRACTICEE,18153063,"16,863.03 "
Department of Health,NHS Barnsley CCG,31/07/2017,Clinical&Medical-Clinical Other,COMMISSIONING SCHEMES,NHS BARNSLEY CCG GP PRACTICEE,18153063,"11,471.28 "
Department of Health,NHS Barnsley CCG,31/07/2017,C&M-GMS DES Learn Dsblty Hlth Chk,PRC DELEGATED CO-COMMISSIONING,NHS BARNSLEY CCG GP PRACTICEE,18167898,"1,160.00 "
Department of Health,NHS Barnsley CCG,31/07/2017,C&M-GMS DES Minor Surgery,PRC DELEGATED CO-COMMISSIONING,NHS BARNSLEY CCG GP PRACTICEE,18167898,"2,855.54 "
Department of Health,NHS Barnsley CCG,31/07/2017,C&M-GMS Global Sum,PRC DELEGATED CO-COMMISSIONING,NHS BARNSLEY CCG GP PRACTICEE,18167898,"90,441.46 "
Department of Health,NHS Barnsley CCG,31/07/2017,C&M-GMS Prem Healthcentre Rent,PRC DELEGATED CO-COMMISSIONING,NHS BARNSLEY CCG GP PRACTICEE,18167898,"31,619.95 "
Department of Health,NHS Barnsley CCG,31/07/2017,C&M-GMS QOF Aspiration,PRC DELEGATED CO-COMMISSIONING,NHS BARNSLEY CCG GP PRACTICEE,18167898,"9,868.55 "
Department of Health,NHS Barnsley CCG,31/07/2017,C&M-GMS DES UNPLANNED ADMISSIONS,PRC DELEGATED CO-COMMISSIONING,NHS BARNSLEY CCG GP PRACTICEE,18167902,"7,666.89 "
Department of Health,NHS Barnsley CCG,31/07/2017,C&M-GMS Global Sum,PRC DELEGATED CO-COMMISSIONING,NHS BARNSLEY CCG GP PRACTICEE,18167902,"76,521.13 "
Department of Health,NHS Barnsley CCG,31/07/2017,C&M-GMS Prem Actual Rent,PRC DELEGATED CO-COMMISSIONING,NHS BARNSLEY CCG GP PRACTICEE,18167902,"41,186.25 "
Department of Health,NHS Barnsley CCG,31/07/2017,C&M-GMS Prem Rates,PRC DELEGATED CO-COMMISSIONING,NHS BARNSLEY CCG GP PRACTICEE,18167902,"2,927.00 "
Department of Health,NHS Barnsley CCG,31/07/2017,C&M-GMS QOF Aspiration,PRC DELEGATED CO-COMMISSIONING,NHS BARNSLEY CCG GP PRACTICEE,18167902,"10,562.04 "
Department of Health,NHS Barnsley CCG,31/07/2017,C&M-PMS Contract Value,PRC DELEGATED CO-COMMISSIONING,NHS BARNSLEY CCG GP PRACTICEE,17962609,"(78,273.95)"
Department of Health,NHS Barnsley CCG,31/07/2017,C&M-PMS Funding Differential Review,PRC DELEGATED CO-COMMISSIONING,NHS BARNSLEY CCG GP PRACTICEE,17962609,(122.25)
Department of Health,NHS Barnsley CCG,31/07/2017,C&M-PMS GP Statutory Levy,PRC DELEGATED CO-COMMISSIONING,NHS BARNSLEY CCG GP PRACTICEE,17962609,(401.83)
Department of Health,NHS Barnsley CCG,31/07/2017,C&M-PMS Out of Hours Opt Outs,PRC DELEGATED CO-COMMISSIONING,NHS BARNSLEY CCG GP PRACTICEE,17962609,"(8,885.46)"
Department of Health,NHS Barnsley CCG,31/07/2017,C&M-PMS Voluntary Levy,PRC DELEGATED CO-COMMISSIONING,NHS BARNSLEY CCG GP PRACTICEE,17962609,(70.29)
Department of Health,NHS Barnsley CCG,31/07/2017,ME - PMS TPS Added Years Adj EEs,PRC DELEGATED CO-COMMISSIONING,NHS BARNSLEY CCG GP PRACTICEE,17962609,(266.67)
Department of Health,NHS Barnsley CCG,31/07/2017,ME-PMS GP Pension EEs-PMS,PRC DELEGATED CO-COMMISSIONING,NHS BARNSLEY CCG GP PRACTICEE,17962609,"(7,669.97)"
Department of Health,NHS Barnsley CCG,31/07/2017,ME-PMS GP Pension ERs Adjs - PMS,PRC DELEGATED CO-COMMISSIONING,NHS BARNSLEY CCG GP PRACTICEE,17962609,"(8,342.72)"
Department of Health,NHS Barnsley CCG,31/07/2017,C&M-PMS Contract Value,PRC DELEGATED CO-COMMISSIONING,NHS BARNSLEY CCG GP PRACTICEE,17962610,"181,282.58 "
Department of Health,NHS Barnsley CCG,31/07/2017,C&M-PMS Funding Differential Review,PRC DELEGATED CO-COMMISSIONING,NHS BARNSLEY CCG GP PRACTICEE,17962610,407.50 
Department of Health,NHS Barnsley CCG,31/07/2017,C&M-PMS Out of Hours Opt Outs,PRC DELEGATED CO-COMMISSIONING,NHS BARNSLEY CCG GP PRACTICEE,17962610,"3,976.10 "
Department of Health,NHS Barnsley CCG,31/07/2017,C&M-PMS PCO Other,PRC DELEGATED CO-COMMISSIONING,NHS BARNSLEY CCG GP PRACTICEE,17962610,523.70 
Department of Health,NHS Barnsley CCG,31/07/2017,C&M-PMS Prem Notional Rent,PRC DELEGATED CO-COMMISSIONING,NHS BARNSLEY CCG GP PRACTICEE,17962610,"11,166.67 "
Department of Health,NHS Barnsley CCG,31/07/2017,C&M-PMS QOF Aspiration,PRC DELEGATED CO-COMMISSIONING,NHS BARNSLEY CCG GP PRACTICEE,17962610,"10,469.27 "
Department of Health,NHS Barnsley CCG,31/07/2017,C&M-PMS Contract Value,PRC DELEGATED CO-COMMISSIONING,NHS BARNSLEY CCG GP PRACTICEE,17962611,"(53,066.10)"
Department of Health,NHS Barnsley CCG,31/07/2017,C&M-PMS GP Statutory Levy,PRC DELEGATED CO-COMMISSIONING,NHS BARNSLEY CCG GP PRACTICEE,17962611,(380.40)
Department of Health,NHS Barnsley CCG,31/07/2017,C&M-PMS Out of Hours Opt Outs,PRC DELEGATED CO-COMMISSIONING,NHS BARNSLEY CCG GP PRACTICEE,17962611,"(4,629.28)"
Department of Health,NHS Barnsley CCG,31/07/2017,C&M-PMS Voluntary Levy,PRC DELEGATED CO-COMMISSIONING,NHS BARNSLEY CCG GP PRACTICEE,17962611,(66.54)
Department of Health,NHS Barnsley CCG,31/07/2017,ME - PMS GP Prior Year ERs,PRC DELEGATED CO-COMMISSIONING,NHS BARNSLEY CCG GP PRACTICEE,17962611,(923.15)
Department of Health,NHS Barnsley CCG,31/07/2017,ME-PMS GP Pension EEs-PMS,PRC DELEGATED CO-COMMISSIONING,NHS BARNSLEY CCG GP PRACTICEE,17962611,"(8,799.58)"
Department of Health,NHS Barnsley CCG,31/07/2017,ME-PMS GP Pension ERs Adjs - PMS,PRC DELEGATED CO-COMMISSIONING,NHS BARNSLEY CCG GP PRACTICEE,17962611,"(9,047.41)"
Department of Health,NHS Barnsley CCG,31/07/2017,ME-PMS GP Prior Year EEs,PRC DELEGATED CO-COMMISSIONING,NHS BARNSLEY CCG GP PRACTICEE,17962611,(652.80)
Department of Health,NHS Barnsley CCG,31/07/2017,C&M-PMS Contract Value,PRC DELEGATED CO-COMMISSIONING,NHS BARNSLEY CCG GP PRACTICEE,17962612,"93,633.81 "
Department of Health,NHS Barnsley CCG,31/07/2017,C&M-PMS Out of Hours Opt Outs,PRC DELEGATED CO-COMMISSIONING,NHS BARNSLEY CCG GP PRACTICEE,17962612,"2,729.55 "
Department of Health,NHS Barnsley CCG,31/07/2017,C&M-PMS PCO Other,PRC DELEGATED CO-COMMISSIONING,NHS BARNSLEY CCG GP PRACTICEE,17962612,523.70 
Department of Health,NHS Barnsley CCG,31/07/2017,C&M-PMS Prem Actual Rent,PRC DELEGATED CO-COMMISSIONING,NHS BARNSLEY CCG GP PRACTICEE,17962612,"12,708.33 "
Department of Health,NHS Barnsley CCG,31/07/2017,C&M-PMS Prem Rates,PRC DELEGATED CO-COMMISSIONING,NHS BARNSLEY CCG GP PRACTICEE,17962612,"2,491.00 "
Department of Health,NHS Barnsley CCG,31/07/2017,C&M-PMS QOF Aspiration,PRC DELEGATED CO-COMMISSIONING,NHS BARNSLEY CCG GP PRACTICEE,17962612,"10,713.50 "
Department of Health,NHS Barnsley CCG,31/07/2017,C&M-PMS Contract Value,PRC DELEGATED CO-COMMISSIONING,NHS BARNSLEY CCG GP PRACTICEE,17962613,"(46,469.55)"
Department of Health,NHS Barnsley CCG,31/07/2017,C&M-PMS GP Statutory Levy,PRC DELEGATED CO-COMMISSIONING,NHS BARNSLEY CCG GP PRACTICEE,17962613,(370.70)
Department of Health,NHS Barnsley CCG,31/07/2017,C&M-PMS Out of Hours Opt Outs,PRC DELEGATED CO-COMMISSIONING,NHS BARNSLEY CCG GP PRACTICEE,17962613,"(4,095.52)"
Department of Health,NHS Barnsley CCG,31/07/2017,ME-PMS GP Pension EEs-PMS,PRC DELEGATED CO-COMMISSIONING,NHS BARNSLEY CCG GP PRACTICEE,17962613,"(2,446.12)"
Department of Health,NHS Barnsley CCG,31/07/2017,ME-PMS GP Pension ERs Adjs - PMS,PRC DELEGATED CO-COMMISSIONING,NHS BARNSLEY CCG GP PRACTICEE,17962613,"(2,598.98)"
Department of Health,NHS Barnsley CCG,31/07/2017,C&M-PMS Contract Value,PRC DELEGATED CO-COMMISSIONING,NHS BARNSLEY CCG GP PRACTICEE,17962614,"82,830.17 "
Department of Health,NHS Barnsley CCG,31/07/2017,C&M-PMS Out of Hours Opt Outs,PRC DELEGATED CO-COMMISSIONING,NHS BARNSLEY CCG GP PRACTICEE,17962614,"2,390.45 "
Department of Health,NHS Barnsley CCG,31/07/2017,C&M-PMS Prem Actual Rent,PRC DELEGATED CO-COMMISSIONING,NHS BARNSLEY CCG GP PRACTICEE,17962614,"8,566.67 "
Department of Health,NHS Barnsley CCG,31/07/2017,C&M-PMS QOF Aspiration,PRC DELEGATED CO-COMMISSIONING,NHS BARNSLEY CCG GP PRACTICEE,17962614,"7,978.34 "
Department of Health,NHS Barnsley CCG,31/07/2017,C&M-GMS DES Minor Surgery,PRC DELEGATED CO-COMMISSIONING,NHS BARNSLEY CCG GP PRACTICEE,18167904,"1,662.18 "
Department of Health,NHS Barnsley CCG,31/07/2017,C&M-GMS Global Sum,PRC DELEGATED CO-COMMISSIONING,NHS BARNSLEY CCG GP PRACTICEE,18167904,"55,415.04 "
Department of Health,NHS Barnsley CCG,31/07/2017,C&M-GMS PCO Other,PRC DELEGATED CO-COMMISSIONING,NHS BARNSLEY CCG GP PRACTICEE,18167904,"3,845.00 "
Department of Health,NHS Barnsley CCG,31/07/2017,C&M-GMS Prem Healthcentre Rent,PRC DELEGATED CO-COMMISSIONING,NHS BARNSLEY CCG GP PRACTICEE,18167904,"20,521.73 "
Department of Health,NHS Barnsley CCG,31/07/2017,C&M-GMS QOF Aspiration,PRC DELEGATED CO-COMMISSIONING,NHS BARNSLEY CCG GP PRACTICEE,18167904,"6,288.65 "
Department of Health,NHS Barnsley CCG,31/07/2017,C&M-PMS Contract Value,PRC DELEGATED CO-COMMISSIONING,NHS BARNSLEY CCG GP PRACTICEE,17962615,"(56,573.96)"
Department of Health,NHS Barnsley CCG,31/07/2017,C&M-PMS GP Statutory Levy,PRC DELEGATED CO-COMMISSIONING,NHS BARNSLEY CCG GP PRACTICEE,17962615,(435.56)
Department of Health,NHS Barnsley CCG,31/07/2017,C&M-PMS Out of Hours Opt Outs,PRC DELEGATED CO-COMMISSIONING,NHS BARNSLEY CCG GP PRACTICEE,17962615,"(4,889.75)"
Department of Health,NHS Barnsley CCG,31/07/2017,C&M-PMS Voluntary Levy,PRC DELEGATED CO-COMMISSIONING,NHS BARNSLEY CCG GP PRACTICEE,17962615,(76.19)
Department of Health,NHS Barnsley CCG,31/07/2017,ME-PMS GP Pension EEs-PMS,PRC DELEGATED CO-COMMISSIONING,NHS BARNSLEY CCG GP PRACTICEE,17962615,"(6,726.95)"
Department of Health,NHS Barnsley CCG,31/07/2017,ME-PMS GP Pension ERs Adjs - PMS,PRC DELEGATED CO-COMMISSIONING,NHS BARNSLEY CCG GP PRACTICEE,17962615,"(7,579.39)"
Department of Health,NHS Barnsley CCG,31/07/2017,C&M-PMS Contract Value,PRC DELEGATED CO-COMMISSIONING,NHS BARNSLEY CCG GP PRACTICEE,17962616,"98,898.75 "
Department of Health,NHS Barnsley CCG,31/07/2017,C&M-PMS DES UNPLANNED ADMISSIONS,PRC DELEGATED CO-COMMISSIONING,NHS BARNSLEY CCG GP PRACTICEE,17962616,"10,193.26 "
Department of Health,NHS Barnsley CCG,31/07/2017,C&M-PMS Out of Hours Opt Outs,PRC DELEGATED CO-COMMISSIONING,NHS BARNSLEY CCG GP PRACTICEE,17962616,"2,909.86 "
Department of Health,NHS Barnsley CCG,31/07/2017,C&M-PMS PCO Locum Adop/Pat/Mat,PRC DELEGATED CO-COMMISSIONING,NHS BARNSLEY CCG GP PRACTICEE,17962616,"6,430.24 "
Department of Health,NHS Barnsley CCG,31/07/2017,C&M-PMS Prem Actual Rent,PRC DELEGATED CO-COMMISSIONING,NHS BARNSLEY CCG GP PRACTICEE,17962616,"53,481.25 "
Department of Health,NHS Barnsley CCG,31/07/2017,C&M-PMS Prem Rates,PRC DELEGATED CO-COMMISSIONING,NHS BARNSLEY CCG GP PRACTICEE,17962616,"10,862.68 "
Department of Health,NHS Barnsley CCG,31/07/2017,C&M-PMS QOF Aspiration,PRC DELEGATED CO-COMMISSIONING,NHS BARNSLEY CCG GP PRACTICEE,17962616,"12,214.31 "
Department of Health,NHS Barnsley CCG,31/07/2017,C&M-GMS DES Minor Surgery,PRC DELEGATED CO-COMMISSIONING,NHS BARNSLEY CCG GP PRACTICEE,18167908,"4,901.30 "
Department of Health,NHS Barnsley CCG,31/07/2017,C&M-GMS Global Sum,PRC DELEGATED CO-COMMISSIONING,NHS BARNSLEY CCG GP PRACTICEE,18167908,"45,157.15 "
Department of Health,NHS Barnsley CCG,31/07/2017,C&M-GMS Prem Notional Rent,PRC DELEGATED CO-COMMISSIONING,NHS BARNSLEY CCG GP PRACTICEE,18167908,"2,541.67 "
Department of Health,NHS Barnsley CCG,31/07/2017,C&M-GMS Prem Rates,PRC DELEGATED CO-COMMISSIONING,NHS BARNSLEY CCG GP PRACTICEE,18167908,454.00 
Department of Health,NHS Barnsley CCG,31/07/2017,C&M-GMS QOF Aspiration,PRC DELEGATED CO-COMMISSIONING,NHS BARNSLEY CCG GP PRACTICEE,18167908,"4,060.06 "
Department of Health,NHS Barnsley CCG,31/07/2017,C&M-PMS Cost of Drugs -Prescribing,LOCAL ENHANCED SERVICES,NHS BARNSLEY CCG GP PRACTICEE,17875873,831.84 
Department of Health,NHS Barnsley CCG,31/07/2017,C&M-PMS LES Anti-coagulation,COMMISSIONING SCHEMES,NHS BARNSLEY CCG GP PRACTICEE,17875873,"1,604.08 "
Department of Health,NHS Barnsley CCG,31/07/2017,C&M-PMS Prem Healthcentre Rent,PRC DELEGATED CO-COMMISSIONING,NHS BARNSLEY CCG GP PRACTICEE,17875873,"51,401.12 "
Department of Health,NHS Barnsley CCG,31/07/2017,Apprenticeship Levy Payable,BALANCE SHEET,HMRC,18010405,642.00 
Department of Health,NHS Barnsley CCG,31/07/2017,Income tax <1Yr,BALANCE SHEET,HMRC,18010405,"57,069.26 "
Department of Health,NHS Barnsley CCG,31/07/2017,Income tax <1Yr-Student Loans,BALANCE SHEET,HMRC,18010405,"2,092.00 "
Department of Health,NHS Barnsley CCG,31/07/2017,National Insurance < 1 yr-NI- ERS,BALANCE SHEET,HMRC,18010405,"40,186.72 "
Department of Health,NHS Barnsley CCG,31/07/2017,National Insurance < 1 yr-NI-EES,BALANCE SHEET,HMRC,18010405,"29,639.07 "
Department of Health,NHS Barnsley CCG,31/07/2017,Statutory Mat Pay < 1 yr,BALANCE SHEET,HMRC,18010405,"(1,556.40)"
Department of Health,NHS Barnsley CCG,31/07/2017,C&M-GMS LES Demand Mgmt,COMMISSIONING SCHEMES,NHS BARNSLEY CCG GP PRACTICEE,18134829,"16,774.26 "
Department of Health,NHS Barnsley CCG,31/07/2017,Clinical&Medical-Clinical Other,COMMISSIONING SCHEMES,NHS BARNSLEY CCG GP PRACTICEE,18134829,"11,410.91 "
Department of Health,NHS Barnsley CCG,31/07/2017,C&M-GMS DES Minor Surgery,PRC DELEGATED CO-COMMISSIONING,NHS BARNSLEY CCG GP PRACTICEE,18167910,"2,770.30 "
Department of Health,NHS Barnsley CCG,31/07/2017,C&M-GMS Global Sum,PRC DELEGATED CO-COMMISSIONING,NHS BARNSLEY CCG GP PRACTICEE,18167910,"83,102.86 "
Department of Health,NHS Barnsley CCG,31/07/2017,C&M-GMS Prem Healthcentre Rent,PRC DELEGATED CO-COMMISSIONING,NHS BARNSLEY CCG GP PRACTICEE,18167910,"22,577.78 "
Department of Health,NHS Barnsley CCG,31/07/2017,C&M-GMS Prem Notional Rent,PRC DELEGATED CO-COMMISSIONING,NHS BARNSLEY CCG GP PRACTICEE,18167910,"1,312.50 "
Department of Health,NHS Barnsley CCG,31/07/2017,C&M-GMS QOF Aspiration,PRC DELEGATED CO-COMMISSIONING,NHS BARNSLEY CCG GP PRACTICEE,18167910,"9,650.40 "
Department of Health,NHS Barnsley CCG,31/07/2017,C&M-PMS Contract Value,PRC DELEGATED CO-COMMISSIONING,NHS BARNSLEY CCG GP PRACTICEE,17962617,"(27,204.90)"
Department of Health,NHS Barnsley CCG,31/07/2017,C&M-PMS Funding Differential Review,PRC DELEGATED CO-COMMISSIONING,NHS BARNSLEY CCG GP PRACTICEE,17962617,(900.50)
Department of Health,NHS Barnsley CCG,31/07/2017,C&M-PMS GP Statutory Levy,PRC DELEGATED CO-COMMISSIONING,NHS BARNSLEY CCG GP PRACTICEE,17962617,(217.21)
Department of Health,NHS Barnsley CCG,31/07/2017,C&M-PMS Out of Hours Opt Outs,PRC DELEGATED CO-COMMISSIONING,NHS BARNSLEY CCG GP PRACTICEE,17962617,"(2,284.88)"
Department of Health,NHS Barnsley CCG,31/07/2017,C&M-PMS Voluntary Levy,PRC DELEGATED CO-COMMISSIONING,NHS BARNSLEY CCG GP PRACTICEE,17962617,(37.99)
Department of Health,NHS Barnsley CCG,31/07/2017,ME-PMS GP Pension EEs-PMS,PRC DELEGATED CO-COMMISSIONING,NHS BARNSLEY CCG GP PRACTICEE,17962617,(846.79)
Department of Health,NHS Barnsley CCG,31/07/2017,ME-PMS GP Pension ERs Adjs - PMS,PRC DELEGATED CO-COMMISSIONING,NHS BARNSLEY CCG GP PRACTICEE,17962617,(901.99)
Department of Health,NHS Barnsley CCG,31/07/2017,C&M-PMS Contract Value,PRC DELEGATED CO-COMMISSIONING,NHS BARNSLEY CCG GP PRACTICEE,17962618,"48,318.57 "
Department of Health,NHS Barnsley CCG,31/07/2017,C&M-PMS Funding Differential Review,PRC DELEGATED CO-COMMISSIONING,NHS BARNSLEY CCG GP PRACTICEE,17962618,"1,500.83 "
Department of Health,NHS Barnsley CCG,31/07/2017,C&M-PMS Out of Hours Opt Outs,PRC DELEGATED CO-COMMISSIONING,NHS BARNSLEY CCG GP PRACTICEE,17962618,"1,334.40 "
Department of Health,NHS Barnsley CCG,31/07/2017,C&M-PMS Prem Healthcentre Rent,PRC DELEGATED CO-COMMISSIONING,NHS BARNSLEY CCG GP PRACTICEE,17962618,"5,694.46 "
Department of Health,NHS Barnsley CCG,31/07/2017,C&M-PMS Prem Notional Rent,PRC DELEGATED CO-COMMISSIONING,NHS BARNSLEY CCG GP PRACTICEE,17962618,"3,583.33 "
Department of Health,NHS Barnsley CCG,31/07/2017,C&M-PMS QOF Aspiration,PRC DELEGATED CO-COMMISSIONING,NHS BARNSLEY CCG GP PRACTICEE,17962618,"4,640.02 "
Department of Health,NHS Barnsley CCG,31/07/2017,External Data Contracts,BUSINESS INFORMATICS,KIER BUSINESS SERVICES LTD,18152948,"14,111.00 "
Department of Health,NHS Barnsley CCG,31/07/2017,External Data Contracts,COMMISSIONING SCHEMES,KIER BUSINESS SERVICES LTD,18152948,"15,218.00 "
Department of Health,NHS Barnsley CCG,31/07/2017,Telecoms-Data lines,PRIMARY CARE IT,KIER BUSINESS SERVICES LTD,18152948,"49,324.00 "
Department of Health,NHS Barnsley CCG,31/07/2017,C&M-PMS Baseline Adjustment,PRC DELEGATED CO-COMMISSIONING,NHS BARNSLEY CCG GP PRACTICEE,17989076,(415.80)
Department of Health,NHS Barnsley CCG,31/07/2017,C&M-PMS Contract Value,PRC DELEGATED CO-COMMISSIONING,NHS BARNSLEY CCG GP PRACTICEE,17989076,"(14,585.70)"
Department of Health,NHS Barnsley CCG,31/07/2017,C&M-PMS Cost of Drugs -Prescribing,LOCAL ENHANCED SERVICES,NHS BARNSLEY CCG GP PRACTICEE,17989076,"(20,082.89)"
Department of Health,NHS Barnsley CCG,31/07/2017,C&M-PMS Out of Hours Opt Outs,PRC DELEGATED CO-COMMISSIONING,NHS BARNSLEY CCG GP PRACTICEE,17989076,"(1,228.25)"
Department of Health,NHS Barnsley CCG,31/07/2017,C&M-PMS Prof fees Prescribing,PRC DELEGATED CO-COMMISSIONING,NHS BARNSLEY CCG GP PRACTICEE,17989076,"(4,485.51)"
Department of Health,NHS Barnsley CCG,31/07/2017,ME - PMS TPS Added Years Adj EEs,PRC DELEGATED CO-COMMISSIONING,NHS BARNSLEY CCG GP PRACTICEE,17989076,(80.00)
Department of Health,NHS Barnsley CCG,31/07/2017,ME-PMS GP Pension EEs-PMS,PRC DELEGATED CO-COMMISSIONING,NHS BARNSLEY CCG GP PRACTICEE,17989076,(778.77)
Department of Health,NHS Barnsley CCG,31/07/2017,ME-PMS GP Pension ERs Adjs - PMS,PRC DELEGATED CO-COMMISSIONING,NHS BARNSLEY CCG GP PRACTICEE,17989076,(981.03)
Department of Health,NHS Barnsley CCG,31/07/2017,C&M-PMS Baseline Adjustment,PRC DELEGATED CO-COMMISSIONING,NHS BARNSLEY CCG GP PRACTICEE,17989077,693.00 
Department of Health,NHS Barnsley CCG,31/07/2017,C&M-PMS Contract Value,PRC DELEGATED CO-COMMISSIONING,NHS BARNSLEY CCG GP PRACTICEE,17989077,"25,894.08 "
Department of Health,NHS Barnsley CCG,31/07/2017,C&M-PMS Cost of Drugs -Prescribing,LOCAL ENHANCED SERVICES,NHS BARNSLEY CCG GP PRACTICEE,17989077,"20,082.89 "
Department of Health,NHS Barnsley CCG,31/07/2017,C&M-PMS DES UNPLANNED ADMISSIONS,PRC DELEGATED CO-COMMISSIONING,NHS BARNSLEY CCG GP PRACTICEE,17989077,"2,773.54 "
Department of Health,NHS Barnsley CCG,31/07/2017,C&M-PMS Out of Hours Opt Outs,PRC DELEGATED CO-COMMISSIONING,NHS BARNSLEY CCG GP PRACTICEE,17989077,717.80 
Department of Health,NHS Barnsley CCG,31/07/2017,C&M-PMS Prem Notional Rent,PRC DELEGATED CO-COMMISSIONING,NHS BARNSLEY CCG GP PRACTICEE,17989077,"4,145.83 "
Department of Health,NHS Barnsley CCG,31/07/2017,C&M-PMS Prem Rates,PRC DELEGATED CO-COMMISSIONING,NHS BARNSLEY CCG GP PRACTICEE,17989077,875.00 
Department of Health,NHS Barnsley CCG,31/07/2017,C&M-PMS Prof fees Prescribing,PRC DELEGATED CO-COMMISSIONING,NHS BARNSLEY CCG GP PRACTICEE,17989077,"4,485.51 "
Department of Health,NHS Barnsley CCG,31/07/2017,C&M-PMS QOF Aspiration,PRC DELEGATED CO-COMMISSIONING,NHS BARNSLEY CCG GP PRACTICEE,17989077,"2,071.11 "
Department of Health,NHS Barnsley CCG,31/07/2017,C&M-PMS Cost of Drugs -Dispensing,LOCAL ENHANCED SERVICES,NHS BARNSLEY CCG GP PRACTICEE,18221040,"31,983.04 "
Department of Health,NHS Barnsley CCG,31/07/2017,C&M-PMS Prof fees Dispensing,PRC DELEGATED CO-COMMISSIONING,NHS BARNSLEY CCG GP PRACTICEE,18221040,"4,488.94 "
Department of Health,NHS Barnsley CCG,31/07/2017,C&M-PMS Prsc Chrgs Cll&Rmttd by GPs,LOCAL ENHANCED SERVICES,NHS BARNSLEY CCG GP PRACTICEE,18221040,"1,298.60 "
Department of Health,NHS Barnsley CCG,31/07/2017,C&M-APMS Contract Value,PRC DELEGATED CO-COMMISSIONING,NHS BARNSLEY CCG GP PRACTICEE,17962622,"18,856.62 "
Department of Health,NHS Barnsley CCG,31/07/2017,C&M-APMS OOH Opt Outs,PRC DELEGATED CO-COMMISSIONING,NHS BARNSLEY CCG GP PRACTICEE,17962622,527.60 
Department of Health,NHS Barnsley CCG,31/07/2017,C&M-APMS Prem Healthcentre Rent,PRC DELEGATED CO-COMMISSIONING,NHS BARNSLEY CCG GP PRACTICEE,17962622,"4,756.91 "
Department of Health,NHS Barnsley CCG,31/07/2017,C&M-PMS Prem Healthcentre Rent,PRC DELEGATED CO-COMMISSIONING,NHS BARNSLEY CCG GP PRACTICEE,17962622,"4,756.91 "
Department of Health,NHS Barnsley CCG,31/07/2017,C&M-PMS QOF Aspiration,PRC DELEGATED CO-COMMISSIONING,NHS BARNSLEY CCG GP PRACTICEE,17962622,"1,598.13 "
Department of Health,NHS Barnsley CCG,30/06/2017,Hcare Srv Rec NHS Trust-CQUIN,ACUTE COMMISSIONING,LEEDS TEACHING HOSPITALS NHS TRUST,17829914,"1,892.70 "
Department of Health,NHS Barnsley CCG,30/06/2017,Hcare Srv Rec NHS Trust-Contract Baseline,ACUTE COMMISSIONING,LEEDS TEACHING HOSPITALS NHS TRUST,17829914,"88,855.50 "
Department of Health,NHS Barnsley CCG,31/07/2017,Computer Software/License,PROGRAMME PROJECTS,MAP OF MEDICINE LTD,17977208,"65,838.70 "
Department of Health,NHS Barnsley CCG,31/07/2017,Hcare Srv Rec NHS Trust-CQUIN,ACUTE COMMISSIONING,MID YORKSHIRE HOSPITALS NHS TRUST,17925310,"2,197.00 "
Department of Health,NHS Barnsley CCG,31/07/2017,Hcare Srv Rec NHS Trust-Contract Baseline,ACUTE COMMISSIONING,MID YORKSHIRE HOSPITALS NHS TRUST,17925310,"206,053.00 "
Department of Health,NHS Barnsley CCG,31/07/2017,Clinical&Medical-Commercial Sector,ACUTE COMMISSIONING,ONEHEALTH GROUP,18134662,"(46,127.71)"
Department of Health,NHS Barnsley CCG,31/07/2017,Clinical&Medical-Commercial Sector,ACUTE COMMISSIONING,ONEHEALTH GROUP,18134840,"189,723.75 "
Department of Health,NHS Barnsley CCG,31/07/2017,Computer Software/License,MEDICINES MANAGEMENT - CLINICAL,OPTUM HEALTH SOLUTIONS (UK) LTD,18091902,"82,856.84 "
Department of Health,NHS Barnsley CCG,31/07/2017,Clinical&Medical-Commercial Sector,ACUTE COMMISSIONING,PAIN MANAGEMENT SOLUTIONS LTD,18106712,"28,943.78 "
Department of Health,NHS Barnsley CCG,31/07/2017,Hcare Srv Rec Fdtn Trust-CQUIN,MENTAL HEALTH CONTRACTS,ROTHERHAM DONCASTER & SOUTH HUMBER MENTAL HEALTH NHS FOUNDATION TRUST,18013106,425.50 
Department of Health,NHS Barnsley CCG,31/07/2017,Hcare Srv Rec Fdtn Trust-Contract Baseline,MENTAL HEALTH CONTRACTS,ROTHERHAM DONCASTER & SOUTH HUMBER MENTAL HEALTH NHS FOUNDATION TRUST,18013106,"34,043.08 "
Department of Health,NHS Barnsley CCG,31/07/2017,Cont Care- Prior Year Payments,CHC ADULT FULLY FUNDED,ROTHERHAM METROPOLITAN BOROUGH COUNCIL,18106518,"49,527.14 "
Department of Health,NHS Barnsley CCG,30/06/2017,Hcare Srv Rec Fdtn Trust-CQUIN,COMMUNITY SERVICES,ROTHERHAM NHS FOUNDATION TRUST,17829927,"1,020.00 "
Department of Health,NHS Barnsley CCG,30/06/2017,Hcare Srv Rec Fdtn Trust-Contract Baseline,COMMUNITY SERVICES,ROTHERHAM NHS FOUNDATION TRUST,17829927,"40,787.00 "
Department of Health,NHS Barnsley CCG,30/06/2017,Hcare Srv Rec Fdtn Trust-CQUIN,ACUTE COMMISSIONING,ROTHERHAM NHS FOUNDATION TRUST,17829946,"5,842.00 "
Department of Health,NHS Barnsley CCG,30/06/2017,Hcare Srv Rec Fdtn Trust-Contract Baseline,ACUTE COMMISSIONING,ROTHERHAM NHS FOUNDATION TRUST,17829946,"420,949.00 "
Department of Health,NHS Barnsley CCG,31/07/2017,C&M-GMS DES Minor Surgery,PRC DELEGATED CO-COMMISSIONING,NHS BARNSLEY CCG GP PRACTICEE,18175043,"1,022.88 "
Department of Health,NHS Barnsley CCG,31/07/2017,C&M-GMS Global Sum,PRC DELEGATED CO-COMMISSIONING,NHS BARNSLEY CCG GP PRACTICEE,18175043,"60,171.98 "
Department of Health,NHS Barnsley CCG,31/07/2017,C&M-GMS Prem Actual Rent,PRC DELEGATED CO-COMMISSIONING,NHS BARNSLEY CCG GP PRACTICEE,18175043,"8,873.23 "
Department of Health,NHS Barnsley CCG,31/07/2017,C&M-GMS Prem Rates,PRC DELEGATED CO-COMMISSIONING,NHS BARNSLEY CCG GP PRACTICEE,18175043,"1,516.04 "
Department of Health,NHS Barnsley CCG,31/07/2017,C&M-GMS QOF Aspiration,PRC DELEGATED CO-COMMISSIONING,NHS BARNSLEY CCG GP PRACTICEE,18175043,"7,778.41 "
Department of Health,NHS Barnsley CCG,30/06/2017,Hcare Srv Rec Fdtn Trust-CQUIN,ACUTE COMMISSIONING,SHEFFIELD CHILDRENS NHS FOUNDATION TRUST,17549982,"1,615.00 "
Department of Health,NHS Barnsley CCG,30/06/2017,Hcare Srv Rec Fdtn Trust-Contract Baseline,ACUTE COMMISSIONING,SHEFFIELD CHILDRENS NHS FOUNDATION TRUST,17549982,"134,793.00 "
Department of Health,NHS Barnsley CCG,31/07/2017,Hcare Srv Rec Fdtn Trust-Contract Baseline,ACUTE COMMISSIONING,SHEFFIELD TEACHING HOSPITALS NHS FOUNDATION TRUST,17897417,"1,852,823.00 "
Department of Health,NHS Barnsley CCG,31/07/2017,Hcare Srv Rec Fdtn Trust-Contract Baseline,ACUTE COMMISSIONING,SHEFFIELD TEACHING HOSPITALS NHS FOUNDATION TRUST,17897423,"174,258.00 "
Department of Health,NHS Barnsley CCG,31/07/2017,Hlthcre-Foundation Trsts,COMMUNITY SERVICES,SOUTH WEST YORKSHIRE PARTNERSHIP NHS FOUNDATION TRUST,18023956,"586,546.00 "
Department of Health,NHS Barnsley CCG,31/07/2017,Hcare Srv Rec Fdtn Trust-CQUIN,COMMUNITY SERVICES,SOUTH WEST YORKSHIRE PARTNERSHIP NHS FOUNDATION TRUST,18023967,"21,494.00 "
Department of Health,NHS Barnsley CCG,31/07/2017,Hcare Srv Rec Fdtn Trust-CQUIN,LEARNING DIFFICULTIES,SOUTH WEST YORKSHIRE PARTNERSHIP NHS FOUNDATION TRUST,18023967,"2,013.00 "
Department of Health,NHS Barnsley CCG,31/07/2017,Hcare Srv Rec Fdtn Trust-CQUIN,MENTAL HEALTH SERVICES - ADULTS,SOUTH WEST YORKSHIRE PARTNERSHIP NHS FOUNDATION TRUST,18023967,"2,709.00 "
Department of Health,NHS Barnsley CCG,31/07/2017,Hcare Srv Rec Fdtn Trust-CQUIN,MENTAL HEALTH SERVICES - OLDER PEOPLE,SOUTH WEST YORKSHIRE PARTNERSHIP NHS FOUNDATION TRUST,18023967,"26,835.00 "
Department of Health,NHS Barnsley CCG,31/07/2017,Hcare Srv Rec Fdtn Trust-Contract Baseline,COMMUNITY SERVICES,SOUTH WEST YORKSHIRE PARTNERSHIP NHS FOUNDATION TRUST,18023967,"1,725,034.00 "
Department of Health,NHS Barnsley CCG,31/07/2017,Hcare Srv Rec Fdtn Trust-Contract Baseline,LEARNING DIFFICULTIES,SOUTH WEST YORKSHIRE PARTNERSHIP NHS FOUNDATION TRUST,18023967,"190,610.00 "
Department of Health,NHS Barnsley CCG,31/07/2017,Hcare Srv Rec Fdtn Trust-Contract Baseline,MENTAL HEALTH SERVICES - ADULTS,SOUTH WEST YORKSHIRE PARTNERSHIP NHS FOUNDATION TRUST,18023967,"216,736.00 "
Department of Health,NHS Barnsley CCG,31/07/2017,Hcare Srv Rec Fdtn Trust-Contract Baseline,MENTAL HEALTH SERVICES - OLDER PEOPLE,SOUTH WEST YORKSHIRE PARTNERSHIP NHS FOUNDATION TRUST,18023967,"2,146,831.00 "
Department of Health,NHS Barnsley CCG,31/07/2017,Clinical&Medical-Voluntary Sector,COMMUNITY SERVICES,SOUTH YORKSHIRE HOUSING ASSOCIATION LTD,18107420,"25,096.73 "
Department of Health,NHS Barnsley CCG,31/07/2017,C&M-PMS Contract Value,PRC DELEGATED CO-COMMISSIONING,NHS BARNSLEY CCG GP PRACTICEE,17962619,"(40,957.68)"
Department of Health,NHS Barnsley CCG,31/07/2017,C&M-PMS GP Statutory Levy,PRC DELEGATED CO-COMMISSIONING,NHS BARNSLEY CCG GP PRACTICEE,17962619,(287.14)
Department of Health,NHS Barnsley CCG,31/07/2017,C&M-PMS Out of Hours Opt Outs,PRC DELEGATED CO-COMMISSIONING,NHS BARNSLEY CCG GP PRACTICEE,17962619,"(3,516.89)"
Department of Health,NHS Barnsley CCG,31/07/2017,C&M-PMS Voluntary Levy,PRC DELEGATED CO-COMMISSIONING,NHS BARNSLEY CCG GP PRACTICEE,17962619,(50.23)
Department of Health,NHS Barnsley CCG,31/07/2017,ME-PMS GP Pension EEs-PMS,PRC DELEGATED CO-COMMISSIONING,NHS BARNSLEY CCG GP PRACTICEE,17962619,"(1,982.30)"
Department of Health,NHS Barnsley CCG,31/07/2017,ME-PMS GP Pension ERs Adjs - PMS,PRC DELEGATED CO-COMMISSIONING,NHS BARNSLEY CCG GP PRACTICEE,17962619,"(2,433.82)"
Department of Health,NHS Barnsley CCG,31/07/2017,C&M-PMS Contract Value,PRC DELEGATED CO-COMMISSIONING,NHS BARNSLEY CCG GP PRACTICEE,17962620,"71,213.02 "
Department of Health,NHS Barnsley CCG,31/07/2017,C&M-PMS Out of Hours Opt Outs,PRC DELEGATED CO-COMMISSIONING,NHS BARNSLEY CCG GP PRACTICEE,17962620,"2,103.88 "
Department of Health,NHS Barnsley CCG,31/07/2017,C&M-PMS Prem Actual Rent,PRC DELEGATED CO-COMMISSIONING,NHS BARNSLEY CCG GP PRACTICEE,17962620,336.75 
Department of Health,NHS Barnsley CCG,31/07/2017,C&M-PMS Prem Healthcentre Rent,PRC DELEGATED CO-COMMISSIONING,NHS BARNSLEY CCG GP PRACTICEE,17962620,"15,939.36 "
Department of Health,NHS Barnsley CCG,31/07/2017,C&M-PMS QOF Aspiration,PRC DELEGATED CO-COMMISSIONING,NHS BARNSLEY CCG GP PRACTICEE,17962620,"6,823.95 "
Department of Health,NHS Barnsley CCG,31/07/2017,C&M-PMS Contract Value,PRC DELEGATED CO-COMMISSIONING,NHS BARNSLEY CCG GP PRACTICEE,17974081,"39,480.61 "
Department of Health,NHS Barnsley CCG,31/07/2017,C&M-PMS DES UNPLANNED ADMISSIONS,PRC DELEGATED CO-COMMISSIONING,NHS BARNSLEY CCG GP PRACTICEE,17974081,"3,610.53 "
Department of Health,NHS Barnsley CCG,31/07/2017,C&M-PMS Out of Hours Opt Outs,PRC DELEGATED CO-COMMISSIONING,NHS BARNSLEY CCG GP PRACTICEE,17974081,"1,124.65 "
Department of Health,NHS Barnsley CCG,31/07/2017,C&M-PMS Prem Healthcentre Rent,PRC DELEGATED CO-COMMISSIONING,NHS BARNSLEY CCG GP PRACTICEE,17974081,"1,189.84 "
Department of Health,NHS Barnsley CCG,31/07/2017,C&M-PMS Prem Notional Rent,PRC DELEGATED CO-COMMISSIONING,NHS BARNSLEY CCG GP PRACTICEE,17974081,"28,675.00 "
Department of Health,NHS Barnsley CCG,31/07/2017,C&M-PMS Prem Rates,PRC DELEGATED CO-COMMISSIONING,NHS BARNSLEY CCG GP PRACTICEE,17974081,"1,350.00 "
Department of Health,NHS Barnsley CCG,31/07/2017,C&M-PMS QOF Aspiration,PRC DELEGATED CO-COMMISSIONING,NHS BARNSLEY CCG GP PRACTICEE,17974081,"4,470.13 "
Department of Health,NHS Barnsley CCG,31/07/2017,C&M-PMS Contract Value,PRC DELEGATED CO-COMMISSIONING,NHS BARNSLEY CCG GP PRACTICEE,17989075,"(21,866.55)"
Department of Health,NHS Barnsley CCG,31/07/2017,C&M-PMS GP Statutory Levy,PRC DELEGATED CO-COMMISSIONING,NHS BARNSLEY CCG GP PRACTICEE,17989075,(159.78)
Department of Health,NHS Barnsley CCG,31/07/2017,C&M-PMS Out of Hours Opt Outs,PRC DELEGATED CO-COMMISSIONING,NHS BARNSLEY CCG GP PRACTICEE,17989075,"(1,951.83)"
Department of Health,NHS Barnsley CCG,31/07/2017,C&M-PMS Voluntary Levy,PRC DELEGATED CO-COMMISSIONING,NHS BARNSLEY CCG GP PRACTICEE,17989075,(27.95)
Department of Health,NHS Barnsley CCG,31/07/2017,ME - PMS GP Prior Year ERs,PRC DELEGATED CO-COMMISSIONING,NHS BARNSLEY CCG GP PRACTICEE,17989075,(486.27)
Department of Health,NHS Barnsley CCG,31/07/2017,ME-PMS GP Pension EEs-PMS,PRC DELEGATED CO-COMMISSIONING,NHS BARNSLEY CCG GP PRACTICEE,17989075,"(1,041.66)"
Department of Health,NHS Barnsley CCG,31/07/2017,ME-PMS GP Pension ERs Adjs - PMS,PRC DELEGATED CO-COMMISSIONING,NHS BARNSLEY CCG GP PRACTICEE,17989075,"(1,198.34)"
Department of Health,NHS Barnsley CCG,31/07/2017,ME-PMS GP Prior Year EEs,PRC DELEGATED CO-COMMISSIONING,NHS BARNSLEY CCG GP PRACTICEE,17989075,(439.08)
Department of Health,NHS Barnsley CCG,31/07/2017,Hcare Srv Rec NHS Trust-Contract Baseline,NHS 111,YORKSHIRE AMBULANCE SERVICE NHS TRUST,17925036,"47,766.00 "
Department of Health,NHS Barnsley CCG,31/07/2017,Hcare Srv Rec NHS Trust-Contract Baseline,PATIENT TRANSPORT,YORKSHIRE AMBULANCE SERVICE NHS TRUST,17925056,"131,135.60 "
Department of Health,NHS Barnsley CCG,31/07/2017,Hcare Srv Rec NHS Trust-Contract Baseline,AMBULANCE SERVICES,YORKSHIRE AMBULANCE SERVICE NHS TRUST,17934097,"627,034.00 "
,,,,,,,"28,382,764.89 "
